fUSD/lending_fUSD_20241018
["ID","MTS","AMOUNT","RATE_DAILY","PERIOD"]
[340433074,1729241460012,-208.0,0.0002341,2]
[340433075,1729241460021,-219.0,0.0002341,2]
[340433076,1729241460031,-221.0,0.0002341,2]
[340433077,1729241460040,-150.0,0.00023422,2]
[340433078,1729241460050,-164.24499455,0.00023424,4]
[340433079,1729241460060,-219.37416337,0.00023424,4]
[340433080,1729241460070,-41925.87848442,0.0002343,2]
[340433081,1729241460080,-150.0,0.0002343,4]
[340433082,1729241460090,-150.0,0.00023448,4]
[340433083,1729241460099,-164.24499455,0.00023455,4]
[340433084,1729241460108,-219.37416337,0.00023455,4]
[340433085,1729241460117,-151.15255116,0.00023456,2]
[340433086,1729241460127,-9295.0,0.00023463,7]
[340433087,1729241460136,-164.24499455,0.00023487,4]
[340433088,1729241460145,-219.37416337,0.00023487,4]
[340433089,1729241460154,-150.0,0.00023488,2]
[340433090,1729241460164,-150.0,0.00023493,4]
[340433091,1729241460173,-150.0,0.00023493,4]
[340433092,1729241460182,-235.26,0.000235,14]
[340433093,1729241460192,-2110.0,0.000235,2]
[340433094,1729241460201,-164.24499455,0.00023518,4]
[340433095,1729241460211,-219.37416337,0.00023518,4]
[340433096,1729241460220,-150.0,0.00023518,2]
[340433097,1729241460229,-150.0,0.00023542,2]
[340433098,1729241460239,-164.24499455,0.00023549,4]
[340433099,1729241460248,-219.37416337,0.00023549,4]
[340433100,1729241460257,-150.0,0.00023549,4]
[340433101,1729241460266,-150.0,0.00023555,4]
[340433102,1729241460275,-150.0,0.0002356,2]
[340433103,1729241460284,-1000.0,0.00023562,2]
[340433104,1729241460294,-150.0,0.00023564,2]
[340433105,1729241460303,-164.24499455,0.00023581,4]
[340433106,1729241460312,-219.37416337,0.00023581,4]
[340433107,1729241460322,-150.0,0.00023585,2]
[340433108,1729241460332,-150.0,0.0002359,2]
[340433109,1729241460341,-150.0,0.00023594,2]
[340433110,1729241460350,-1220.77,0.000236,12]
[340433111,1729241460360,-164.24499455,0.00023612,4]
[340433112,1729241460369,-219.37416337,0.00023612,4]
[340433113,1729241460378,-150.0,0.00023617,4]
[340433114,1729241460388,-150.0,0.00023624,2]
[340433115,1729241460398,-150.0,0.00023627,2]
[340433116,1729241460407,-203.0,0.0002364,2]
[340433117,1729241460416,-202.0,0.0002364,2]
[340433118,1729241460425,-164.24499455,0.00023644,4]
[340433119,1729241460434,-219.37416337,0.00023644,4]
[340433120,1729241460443,-150.0,0.00023664,2]
[340433121,1729241460453,-150.0,0.00023666,2]
[340433122,1729241460462,-150.0,0.00023671,4]
[340433123,1729241460471,-150.0,0.00023675,2]
[340433124,1729241460481,-164.24499455,0.00023675,4]
[340433125,1729241460490,-219.37416337,0.00023675,4]
[340433126,1729241460499,-150.0,0.0002368,4]
[340433127,1729241460509,-150.0,0.00023683,2]
[340433128,1729241460518,-164.24499455,0.00023707,4]
[340433129,1729241460527,-219.37416337,0.00023707,4]
[340433130,1729241460536,-650.0,0.00023712,2]
[340433131,1729241460545,-150.0,0.00023715,2]
[340433132,1729241460554,-450.0,0.00023724,4]
[340433133,1729241460564,-164.24499455,0.00023738,4]
[340433134,1729241460572,-219.37416337,0.00023738,4]
[340433135,1729241460581,-500.0,0.0002374,2]
[340433136,1729241460591,-150.0,0.00023742,4]
[340433137,1729241460600,-164.24499455,0.0002377,4]
[340433138,1729241460609,-219.37416337,0.0002377,4]
[340433139,1729241460619,-150.0,0.00023782,2]
[340433140,1729241460628,-150.0,0.00023792,2]
[340433141,1729241460636,-416.0,0.000238,7]
[340433142,1729241460645,-1358.0,0.000238,13]
[340433143,1729241460655,-569.0,0.000238,7]
[340433144,1729241460664,-159.037761,0.000238,30]
[340433145,1729241460673,-164.24499455,0.00023801,4]
[340433146,1729241460682,-219.37416337,0.00023801,4]
[340433147,1729241460692,-150.0,0.00023804,4]
[340433148,1729241460701,-150.0,0.00023809,2]
[340433149,1729241460710,-150.0,0.00023813,2]
[340433150,1729241460720,-150.0,0.00023816,2]
[340433151,1729241460729,-150.0,0.00023817,2]
[340433152,1729241460738,-164.24499455,0.00023833,4]
[340433153,1729241460747,-219.37416337,0.00023833,4]
[340433154,1729241460756,-150.0,0.00023833,4]
[340433155,1729241460766,-1000.0,0.00023836,2]
[340433156,1729241460775,-164.24499455,0.00023864,4]
[340433157,1729241460784,-219.37416337,0.00023864,4]
[340433158,1729241460793,-150.0,0.00023867,4]
[340433159,1729241460803,-150.0,0.00023877,2]
[340433160,1729241460812,-208.0,0.0002388,2]
[340433161,1729241460821,-219.0,0.0002388,2]
[340433162,1729241460831,-221.0,0.0002388,2]
[340433163,1729241460841,-230.0,0.0002388,2]
[340433164,1729241460850,-223.0,0.0002388,2]
[340433165,1729241460860,-204.0,0.0002388,2]
[340433166,1729241460869,-150.0,0.00023893,4]
[340433167,1729241460879,-164.24499455,0.00023896,4]
[340433168,1729241460889,-219.37416337,0.00023896,4]
[340433169,1729241460899,-150.0,0.00023904,2]
[340433170,1729241460908,-335304.0,0.00023922,2]
[340433171,1729241460919,-150.0,0.00023923,2]
[340433172,1729241460928,-150.0,0.00023926,2]
[340433173,1729241460938,-164.24499455,0.00023927,4]
[340433174,1729241460948,-219.37416337,0.00023927,4]
[340433175,1729241460958,-150.0,0.00023929,4]
[340433176,1729241460967,-1002.48,0.00023955,2]
[340433177,1729241460977,-164.24499455,0.00023959,4]
[340433178,1729241460986,-219.37416337,0.00023959,4]
[340433179,1729241460996,-164.24499455,0.0002399,4]
[340433180,1729241461133,-219.37416337,0.0002399,4]
[340433181,1729241461143,-150.0,0.00023991,4]
[340433182,1729241461152,-76478.41060927,0.00024,2]
[340433183,1729241461161,-150.0,0.00024,10]
[340433184,1729241461170,-900.0,0.00024,25]
[340433185,1729241461179,-2372.41593424,0.00024,2]
[340433186,1729241461189,-3000.0,0.00024,6]
[340433187,1729241461198,-2110.0,0.00024,2]
[340433188,1729241461208,-900.0,0.00024,2]
[340433189,1729241461217,-238.933426,0.00024,7]
[340433190,1729241461227,-238.933426,0.00024,7]
[340433191,1729241461236,-151.0,0.00024,7]
[340433192,1729241461246,-151.0,0.00024,7]
[340433193,1729241461256,-278.185244,0.00024,7]
[340433194,1729241461266,-278.185244,0.00024,7]
[340433195,1729241461276,-151.0,0.00024,7]
[340433196,1729241461285,-1005.311391,0.00024,7]
[340433197,1729241461295,-1005.311391,0.00024,7]
[340433198,1729241461304,-10000.0,0.00024,2]
[340433199,1729241461314,-10000.0,0.00024,2]
[340433200,1729241461324,-10000.0,0.00024,2]
[340433201,1729241461335,-15855.54559777,0.00024,2]
[340433202,1729241461344,-10000.0,0.00024,2]
[340433203,1729241461353,-16603.44935435,0.00024,2]
[340433204,1729241461363,-11027.1163357,0.00024,2]
[340433205,1729241461372,-7618.69315643,0.00024,2]
[340433206,1729241461381,-10468.87099697,0.00024,2]
[340433207,1729241461391,-174.0,0.00024,2]
[340433208,1729241461400,-150.0,0.00024014,2]
[340433209,1729241461410,-164.24499455,0.00024022,4]
[340433210,1729241461419,-219.37416337,0.00024022,4]
[340433211,1729241461429,-150.0,0.00024038,2]
[340433212,1729241461439,-164.24499455,0.00024053,4]
[340433213,1729241461448,-219.37416337,0.00024053,4]
[340433214,1729241461457,-150.0,0.00024054,4]
[340433215,1729241461467,-499.49868039,0.0002407,2]
[340433216,1729241461478,-164.24499455,0.00024085,4]
[340433217,1729241461488,-219.37416337,0.00024085,4]
[340433218,1729241461498,-302.68,0.00024095,2]
[340433219,1729241461508,-416.0,0.000241,7]
[340433220,1729241461517,-500.0,0.00024109,2]
[340433221,1729241461527,-500.0,0.00024109,2]
[340433222,1729241461536,-500.0,0.00024109,2]
[340433223,1729241461546,-500.0,0.00024109,2]
[340433224,1729241461558,-500.0,0.00024109,2]
[340433225,1729241461568,-500.0,0.00024109,2]
[340433226,1729241461582,-500.0,0.00024109,2]
[340433227,1729241461596,-500.0,0.00024109,2]
[340433228,1729241461606,-500.0,0.00024109,2]
[340433229,1729241461616,-500.0,0.00024109,2]
[340433230,1729241461626,-500.0,0.00024109,2]
[340433231,1729241461636,-500.0,0.00024109,2]
[340433232,1729241461646,-500.0,0.00024109,2]
[340433233,1729241461656,-500.0,0.00024109,2]
[340433234,1729241461665,-500.0,0.00024109,2]
[340433235,1729241461675,-312.09,0.00024109,2]
[340433236,1729241461685,-500.0,0.00024109,2]
[340433237,1729241461694,-500.0,0.00024109,2]
[340433238,1729241461704,-500.0,0.00024109,2]
[340433239,1729241461714,-500.0,0.00024109,2]
[340433240,1729241461723,-500.0,0.00024109,2]
[340433241,1729241461733,-500.0,0.00024109,2]
[340433242,1729241461742,-500.0,0.00024109,2]
[340433243,1729241461752,-500.0,0.00024109,2]
[340433244,1729241461762,-500.0,0.00024109,2]
[340433245,1729241461771,-500.0,0.00024109,2]
[340433246,1729241461780,-500.0,0.00024109,2]
[340433247,1729241461791,-500.0,0.00024109,2]
[340433248,1729241461800,-510.12,0.00024109,2]
[340433249,1729241461810,-500.0,0.00024109,2]
[340433250,1729241461819,-500.0,0.00024109,2]
[340433251,1729241461834,-500.0,0.00024109,2]
[340433252,1729241461843,-500.0,0.00024109,2]
[340433253,1729241461853,-500.0,0.00024109,2]
[340433254,1729241461862,-510.22067213,0.00024109,2]
[340433255,1729241461872,-500.0,0.00024109,2]
[340433256,1729241461882,-500.0,0.00024109,2]
[340433257,1729241461892,-500.0,0.00024109,2]
[340433258,1729241461901,-500.0,0.00024109,2]
[340433259,1729241461911,-500.0,0.00024109,2]
[340433260,1729241461920,-500.0,0.00024109,2]
[340433261,1729241461933,-500.0,0.00024109,2]
[340433262,1729241461943,-500.0,0.00024109,2]
[340433263,1729241461952,-500.0,0.00024109,2]
[340433264,1729241461961,-500.0,0.00024109,2]
[340433265,1729241461971,-404.2,0.00024109,2]
[340433266,1729241461981,-500.0,0.00024109,2]
[340433267,1729241461991,-203.0,0.0002411,2]
[340433268,1729241462000,-202.0,0.0002411,2]
[340433269,1729241462010,-1000.0,0.0002411,2]
[340433270,1729241462020,-500.0,0.0002411,2]
[340433271,1729241462029,-159.99507566,0.0002411,2]
[340433272,1729241462039,-153.41963421,0.0002411,2]
[340433273,1729241462048,-454.0,0.0002411,2]
[340433274,1729241462058,-150.0,0.0002411,2]
[340433275,1729241462067,-500.0,0.0002411,2]
[340433276,1729241462077,-493.0,0.0002411,2]
[340433277,1729241462091,-593.0,0.0002411,2]
[340433278,1729241462101,-156.054669,0.00024116,7]
[340433279,1729241462110,-933.572652,0.00024116,7]
[340433280,1729241462120,-156.054669,0.00024116,7]
[340433281,1729241462129,-933.572652,0.00024116,7]
[340433282,1729241462138,-164.24499455,0.00024116,4]
[340433283,1729241462147,-219.37416337,0.00024116,4]
[340433284,1729241462157,-150.16282191,0.00024116,4]
[340433285,1729241462166,-154.21736496,0.00024116,4]
[340433286,1729241462175,-213.02753671,0.00024116,4]
[340433287,1729241462185,-150.56141695,0.00024116,4]
[340433288,1729241462194,-276.40731764,0.00024116,4]
[340433289,1729241462203,-150.16159,0.00024116,4]
[340433290,1729241462212,-150.28975929,0.00024116,4]
[340433291,1729241462222,-150.15805466,0.00024116,4]
[340433292,1729241462231,-151.44592789,0.00024116,4]
[340433293,1729241462240,-152.07238693,0.00024116,4]
[340433294,1729241462249,-150.39312409,0.00024116,4]
[340433295,1729241462258,-164.92424235,0.00024116,4]
[340433296,1729241462268,-150.16259968,0.00024116,4]
[340433297,1729241462277,-151.01359535,0.00024116,4]
[340433298,1729241462286,-150.0,0.00024138,2]
[340433299,1729241462296,-150.0,0.00024147,2]
[340433300,1729241462305,-150.0,0.00024167,2]
[340433301,1729241462314,-150.0,0.00024176,2]
[340433302,1729241462324,-150.0,0.00024196,2]
[340433303,1729241462337,-2999.99,0.000242,2]
[340433304,1729241462346,-3000.0,0.000242,2]
[340433305,1729241462355,-3005.44,0.000242,2]
[340433306,1729241462365,-3000.0,0.000242,2]
[340433307,1729241462374,-3000.0,0.000242,2]
[340433308,1729241462383,-1136.46,0.000242,2]
[340433309,1729241462392,-151.0,0.000242,7]
[340433310,1729241462402,-3505.43678687,0.0002421,2]
[340433311,1729241462411,-280.083173,0.0002421,7]
[340433312,1729241462420,-280.083173,0.0002421,7]
[340433313,1729241462429,-151.0,0.0002421,7]
[340433314,1729241462438,-295.200594,0.0002421,7]
[340433315,1729241462447,-150.0,0.00024225,2]
[340433316,1729241462457,-297.17,0.00024225,2]
[340433317,1729241462466,-247.06,0.00024225,2]
[340433318,1729241462476,-150.0,0.00024226,2]
[340433319,1729241462485,-150.0,0.0002424,2]
[340433320,1729241462494,-750.0,0.0002426,2]
[340433321,1729241462504,-150.0,0.00024263,2]
[340433322,1729241462513,-150.0,0.00024275,2]
[340433323,1729241462523,-150.0,0.0002429,2]
[340433324,1729241462531,-550.43,0.00024291,2]
[340433325,1729241462541,-300.0,0.000243,2]
[340433326,1729241462551,-279.01374037,0.0002432,2]
[340433327,1729241462560,-150.0,0.00024321,2]
[340433328,1729241462569,-300.0,0.00024345,2]
[340433329,1729241462581,-300.0,0.0002438,4]
[340433330,1729241462590,-1000.0,0.00024384,2]
[340433331,1729241462600,-150.0,0.0002439,2]
[340433332,1729241462609,-150.0,0.00024399,2]
[340433333,1729241462619,-300.0,0.000244,30]
[340433334,1729241462629,-150.0,0.00024444,2]
[340433335,1729241462638,-150.0,0.00024448,2]
[340433336,1729241462647,-57343.31198887,0.00024493,2]
[340433337,1729241462657,-415.55043515,0.00024493,2]
[340433338,1729241462666,-150.0,0.00024497,2]
[340433339,1729241462675,-50676.25407638,0.00024499,2]
[340433340,1729241462685,-151.0,0.00024499,7]
[340433341,1729241462695,-151.0,0.00024499,7]
[340433342,1729241462705,-151.0,0.00024499,7]
[340433343,1729241462715,-151.0,0.00024499,7]
[340433344,1729241462724,-250.0,0.000245,30]
[340433345,1729241462734,-250.0,0.000245,30]
[340433346,1729241462743,-250.0,0.000245,30]
[340433347,1729241462753,-251.84976915,0.000245,30]
[340433348,1729241462763,-4681.88,0.000245,2]
[340433349,1729241462772,-5000.0,0.000245,2]
[340433350,1729241462782,-5000.0,0.000245,2]
[340433351,1729241462791,-5000.0,0.000245,2]
[340433352,1729241462801,-300.0,0.000245,2]
[340433353,1729241462811,-5000.0,0.000245,2]
[340433354,1729241462820,-56169.90162437,0.000245,15]
[340433355,1729241462830,-2110.0,0.000245,2]
[340433356,1729241462839,-214.06,0.000245,31]
[340433357,1729241462850,-214.06,0.000245,31]
[340433358,1729241462859,-214.06,0.000245,31]
[340433359,1729241462868,-214.06,0.000245,31]
[340433360,1729241462877,-214.06,0.000245,31]
[340433361,1729241462886,-214.06,0.000245,31]
[340433362,1729241462896,-214.06,0.000245,31]
[340433363,1729241462906,-214.06,0.000245,31]
[340433364,1729241462915,-214.06,0.000245,31]
[340433365,1729241462925,-214.06,0.000245,31]
[340433366,1729241462939,-214.06,0.000245,31]
[340433367,1729241462948,-214.06,0.000245,31]
[340433368,1729241462958,-214.06,0.000245,31]
[340433369,1729241462967,-214.06,0.000245,31]
[340433370,1729241462977,-214.06,0.000245,31]
[340433371,1729241462987,-214.06,0.000245,31]
[340433372,1729241462997,-150.0,0.00024517,2]
[340433373,1729241463006,-150.0,0.00024528,2]
[340433374,1729241463016,-150.0,0.00024529,2]
[340433375,1729241463027,-150.0,0.00024541,2]
[340433376,1729241463036,-150.0,0.00024543,2]
[340433377,1729241463047,-1000.0,0.00024567,10]
[340433378,1729241463057,-500.0,0.0002463,2]
[340433379,1729241463067,-500.0,0.0002463,2]
[340433380,1729241463077,-573.92856243,0.0002463,2]
[340433381,1729241463088,-526.03,0.00024657,2]
[340433382,1729241463098,-526.03,0.00024657,2]
[340433383,1729241463108,-526.03,0.00024657,2]
[340433384,1729241463117,-526.03,0.00024657,2]
[340433385,1729241463127,-526.03,0.00024657,2]
[340433386,1729241463136,-526.03,0.00024657,2]
[340433387,1729241463146,-526.03,0.00024657,2]
[340433388,1729241463155,-526.03,0.00024657,2]
[340433389,1729241463164,-526.03,0.00024657,2]
[340433390,1729241463174,-526.03,0.00024657,2]
[340433391,1729241463183,-526.03,0.00024657,2]
[340433392,1729241463192,-526.03,0.00024657,2]
[340433393,1729241463202,-526.03,0.00024657,2]
[340433394,1729241463211,-526.03,0.00024657,2]
[340433395,1729241463220,-526.03,0.00024657,2]
[340433396,1729241463229,-526.03,0.00024657,2]
[340433397,1729241463239,-526.03,0.00024657,2]
[340433398,1729241463248,-526.03,0.00024657,2]
[340433399,1729241463258,-526.03,0.00024657,2]
[340433400,1729241463267,-526.03,0.00024657,2]
[340433401,1729241463276,-526.03,0.00024657,2]
[340433402,1729241463286,-526.03,0.00024657,2]
[340433403,1729241463295,-526.03,0.00024657,2]
[340433404,1729241463305,-526.21453481,0.00024657,2]
[340433405,1729241463314,-750.0,0.00024657,2]
[340433406,1729241463324,-2363.62,0.00024657,7]
[340433407,1729241463334,-2363.62,0.00024657,7]
[340433408,1729241463343,-2363.62,0.00024657,7]
[340433409,1729241463352,-2363.62,0.00024657,7]
[340433410,1729241463361,-2363.62,0.00024657,7]
[340433411,1729241463370,-2363.62,0.00024657,7]
[340433412,1729241463379,-2363.62,0.00024657,7]
[340433413,1729241463389,-2363.62,0.00024657,7]
[340433414,1729241463398,-2363.62,0.00024657,7]
[340433415,1729241463408,-2363.62,0.00024657,7]
[340433416,1729241463417,-2363.62,0.00024657,7]
[340433417,1729241463427,-2363.62,0.00024657,7]
[340433418,1729241463437,-2363.62,0.00024657,7]
[340433419,1729241463446,-2363.62,0.00024657,7]
[340433420,1729241463455,-2363.62,0.00024657,7]
[340433421,1729241463465,-2363.62,0.00024657,7]
[340433422,1729241463474,-2363.62,0.00024657,7]
[340433423,1729241463484,-2363.62,0.00024657,7]
[340433424,1729241463493,-2363.62,0.00024657,7]
[340433425,1729241463503,-2363.62,0.00024657,7]
[340433426,1729241463512,-2363.62,0.00024657,7]
[340433427,1729241463521,-2363.62,0.00024657,7]
[340433428,1729241463531,-2363.62,0.00024657,7]
[340433429,1729241463540,-2363.66272752,0.00024657,7]
[340433430,1729241463550,-500.0,0.00024657,2]
[340433431,1729241463559,-500.0,0.00024657,2]
[340433432,1729241463569,-500.0,0.00024657,2]
[340433433,1729241463577,-500.0,0.00024657,2]
[340433434,1729241463587,-500.0,0.00024657,2]
[340433435,1729241463596,-552.14207877,0.00024657,2]
[340433436,1729241463606,-500.0,0.00024657,2]
[340433437,1729241463615,-500.0,0.00024657,2]
[340433438,1729241463625,-500.0,0.00024657,2]
[340433439,1729241463635,-500.0,0.00024657,2]
[340433440,1729241463645,-500.0,0.00024657,2]
[340433441,1729241463655,-500.0,0.00024657,2]
[340433442,1729241463664,-500.0,0.00024657,2]
[340433443,1729241463674,-500.0,0.00024657,2]
[340433444,1729241463683,-544.21160106,0.00024657,2]
[340433445,1729241463693,-1000.0,0.00024657,2]
[340433446,1729241463703,-348.25391194,0.00024657,2]
[340433447,1729241463712,-150.0,0.00024657,2]
[340433448,1729241463722,-4000.0,0.00024658,28]
[340433449,1729241463731,-500.0,0.00024658,7]
[340433450,1729241463740,-1000.0,0.00024658,2]
[340433451,1729241463749,-1000.0,0.00024658,2]
[340433452,1729241463759,-250.0,0.0002467,2]
[340433453,1729241463769,-233.42297912,0.000247,2]
[340433454,1729241463779,-300.08714114,0.000247,2]
[340433455,1729241463789,-1556.65,0.00024721,30]
[340433456,1729241463799,-1587.01030184,0.000248,2]
[340433457,1729241463809,-2717.73342582,0.000248,2]
[340433458,1729241463818,-7160.39932267,0.000248,5]
[340433459,1729241463827,-377.18814045,0.000248,4]
[340433460,1729241463838,-174.0,0.00024806,2]
[340433461,1729241463848,-850.0,0.00024808,2]
[340433462,1729241463859,-2000.0,0.000249,2]
[340433463,1729241463869,-2000.0,0.000249,2]
[340433464,1729241463878,-2000.0,0.000249,2]
[340433465,1729241463888,-2000.0,0.000249,2]
[340433466,1729241463897,-2000.0,0.000249,2]
[340433467,1729241463907,-2000.0,0.000249,2]
[340433468,1729241463918,-15209.66971701,0.000249,2]
[340433469,1729241463930,-300.0,0.000249,2]
[340433470,1729241463942,-2192.47400485,0.000249,5]
[340433471,1729241463952,-2000.0,0.000249,2]
[340433472,1729241463961,-2000.0,0.000249,2]
[340433473,1729241463971,-2000.0,0.000249,2]
[340433474,1729241463982,-2000.0,0.000249,2]
[340433475,1729241463992,-15398.59,0.000249,10]
[340433476,1729241464002,-10000.0,0.000249,2]
[340433477,1729241464013,-1002.48,0.0002491,2]
[340433478,1729241464023,-1000.0,0.00024932,2]
[340433479,1729241464032,-500.0,0.00024938,3]
[340433480,1729241464164,-500.0,0.00024947,3]
[340433481,1729241464175,-500.0,0.00024956,3]
[340433482,1729241464185,-500.0,0.00024965,3]
[340433483,1729241464195,-500.0,0.00024974,3]
[340433484,1729241464205,-500.0,0.00024982,3]
[340433485,1729241464215,-25000.0,0.0002499,3]
[340433486,1729241464224,-173.15,0.0002499,10]
[340433487,1729241464234,-500.0,0.00024991,3]
[340433488,1729241464243,-95932.04447597,0.00024999,2]
[340433489,1729241464253,-369.75,0.00024999,2]
[340433490,1729241464263,-50000.0,0.00025,7]
[340433491,1729241464272,-50000.0,0.00025,8]
[340433492,1729241464282,-50000.0,0.00025,9]
[340433493,1729241464292,-50000.0,0.00025,10]
[340433494,1729241464302,-50000.0,0.00025,11]
[340433495,1729241464311,-34863878.09542211,0.00025,2]
[340433496,1729241464321,-12766145.26511192,0.00025,2]
[340433497,1729241464332,-2887.21643229,0.00025,2]
[340433498,1729241464345,-6123953.67830135,0.00025,2]
[340433499,1729241464354,-3933.92662188,0.00025,2]
[340433500,1729241464364,-27435.36940457,0.00025,7]
[340433501,1729241464374,-328.01587555,0.00025,2]
[340433502,1729241464384,-2347.24331117,0.00025,30]
[340433503,1729241464394,-2100.0,0.00025,30]
[340433504,1729241464404,-2326956.73099336,0.00025,2]
[340433505,1729241464413,-3077.0,0.00025,3]
[340433506,1729241464422,-19273.87164911,0.00025,5]
[340433507,1729241464431,-775187.75281854,0.00025,2]
[340433508,1729241464441,-250.0,0.00025,30]
[340433509,1729241464451,-500.0,0.00025,5]
[340433510,1729241464460,-150.0,0.00025,10]
[340433511,1729241464469,-900.0,0.00025,26]
[340433512,1729241464479,-1330.90174095,0.00025,2]
[340433513,1729241464488,-406.37342559,0.00025,25]
[340433514,1729241464497,-2000.0,0.00025,2]
[340433515,1729241464507,-155.61815834,0.00025,10]
[340433516,1729241464517,-235.26,0.00025,14]
[340433517,1729241464527,-2110.0,0.00025,2]
[340433518,1729241464537,-500.0,0.00025,3]
[340433519,1729241464547,-209.877704,0.00025,7]
[340433520,1729241464556,-151.0,0.00025,7]
[340433521,1729241464566,-151.0,0.00025,7]
[340433522,1729241464576,-151.0,0.00025,7]
[340433523,1729241464587,-276.711013,0.00025,7]
[340433524,1729241464596,-151.0,0.00025,7]
[340433525,1729241464606,-151.0,0.00025,7]
[340433526,1729241464616,-173.172663,0.00025,7]
[340433527,1729241464626,-151.0,0.00025,7]
[340433528,1729241464635,-151.0,0.00025,7]
[340433529,1729241464645,-151.0,0.00025,7]
[340433530,1729241464654,-151.0,0.00025,7]
[340433531,1729241464664,-238.933426,0.00025,7]
[340433532,1729241464673,-238.933426,0.00025,7]
[340433533,1729241464683,-238.933426,0.00025,7]
[340433534,1729241464692,-238.933426,0.00025,7]
[340433535,1729241464701,-238.933426,0.00025,7]
[340433536,1729241464711,-238.933435,0.00025,7]
[340433537,1729241464720,-151.0,0.00025,7]
[340433538,1729241464729,-151.0,0.00025,7]
[340433539,1729241464738,-151.0,0.00025,7]
[340433540,1729241464748,-151.0,0.00025,7]
[340433541,1729241464757,-238.619938,0.00025,7]
[340433542,1729241464767,-278.185244,0.00025,7]
[340433543,1729241464776,-278.185244,0.00025,7]
[340433544,1729241464786,-278.185244,0.00025,7]
[340433545,1729241464796,-278.185244,0.00025,7]
[340433546,1729241464805,-278.185244,0.00025,7]
[340433547,1729241464815,-278.185238,0.00025,7]
[340433548,1729241464825,-301.274531,0.00025,7]
[340433549,1729241464835,-1005.311391,0.00025,7]
[340433550,1729241464844,-1005.311391,0.00025,7]
[340433551,1729241464854,-1005.311391,0.00025,7]
[340433552,1729241464863,-1005.311391,0.00025,7]
[340433553,1729241464872,-1005.311391,0.00025,7]
[340433554,1729241464882,-1005.311386,0.00025,7]
[340433555,1729241464891,-280.083173,0.00025,7]
[340433556,1729241464901,-280.083173,0.00025,7]
[340433557,1729241464910,-280.083173,0.00025,7]
[340433558,1729241464919,-280.083173,0.00025,7]
[340433559,1729241464932,-280.083173,0.00025,7]
[340433560,1729241464942,-280.08318,0.00025,7]
[340433561,1729241464952,-156.054669,0.00025,7]
[340433562,1729241464962,-156.054669,0.00025,7]
[340433563,1729241464971,-156.054669,0.00025,7]
[340433564,1729241464981,-933.572652,0.00025,7]
[340433565,1729241464991,-933.572652,0.00025,7]
[340433566,1729241465000,-933.572652,0.00025,7]
[340433567,1729241465010,-156.054669,0.00025,7]
[340433568,1729241465020,-156.054669,0.00025,7]
[340433569,1729241465030,-156.054671,0.00025,7]
[340433570,1729241465040,-933.572652,0.00025,7]
[340433571,1729241465049,-933.572652,0.00025,7]
[340433572,1729241465059,-933.572651,0.00025,7]
[340433573,1729241465068,-151.0,0.00025,7]